Cogmind - Beta 16 *** ADVENTURER MODE // 2025.10.25 @ 21:42:19 Player: b9 Result: Destroyed by L0-I3W(R) with Subdweller Machine Gun Performance ------------- Evolutions (0) 0 Regions Visited (2) 400 Robots Destroyed (25) 125 Value Destroyed (799) 799 Prototype IDs (3) 60 Alien Tech Used (0) 0 Bonus (0) 0 TOTAL SCORE: 1384 Bonus ------- None Cogmind --------- Core Integrity 0/250 Matter 265/300 Energy 200/200 System Corruption 0% Temperature Cool (0) Movement Core (250) Ox4 Location -10/Subcaves Parts ------- > --- POWER (1) -------- Subdweller Power Source > --- PROPULSION (2) --- Subdweller Monowheel Subdweller Monowheel > --- UTILITY (2) ------ Subdweller Optics Signal Interpreter > --- WEAPON (2) ------- Battle Rifle Subdweller Machine Gun > --- INVENTORY (5) ---- Hover Unit Structural Scanner Seismic Detector Peak State ------------ > --- POWER ------------ Subdweller Power Source > --- PROPULSION ------- Subdweller Monowheel Subdweller Monowheel > --- UTILITY ---------- Subdweller Optics Signal Interpreter > --- WEAPON ----------- Subdweller Laser Subdweller Machine Gun > --- INVENTORY -------- Hover Unit Structural Scanner Seismic Detector Scrap Shield [Rating: 13] Favorites ----------- Power Light Ion Engine Engine Light Ion Engine Propulsion Light Treads Treads Light Treads Leg Aluminum Leg Wheel Subdweller Monowheel Hover Unit Hover Unit Flight Unit Flight Unit Utility Signal Interpreter Device Subdweller Optics Storage High-capacity Storage Unit Processor Signal Interpreter Weapon Assault Rifle Energy Gun Medium Laser Ballistic Gun Assault Rifle Launcher Grenade Launcher Build | -11 -10 -10 ------- Run | Yrd Mat Sub Slots Evolved . | . . . Power . | . . . Propulsion . | . . . Utility . | . . . Weapon . | . . . Parts Attached 38 | 6 20 12 Power 7 | 1 2 4 Engine 7 | 1 2 4 Core . | . . . Reactor . | . . . Propulsion 14 | 3 9 2 Treads 4 | . 4 . Leg 1 | 1 . . Wheel 4 | 2 . 2 Hover 3 | . 3 . Flight 2 | . 2 . Utility 8 | . 6 2 Device 4 | . 3 1 Storage 2 | . 2 . Processor 2 | . 1 1 Hackware . | . . . Protection . | . . . Artifact . | . . . Weapon 9 | 2 3 4 Energy Gun 4 | . 2 2 Energy Cannon . | . . . Ballistic Gun 4 | 2 . 2 Ballistic Cannon . | . . . Launcher 1 | . 1 . Special Weapon . | . . . Impact Weapon . | . . . Slashing Weapon . | . . . Piercing Weapon . | . . . Special Melee Weapon . | . . . Unidentified Prototypes . | . . . Parts Lost 2 | . . 2 Power 1 | . . 1 Propulsion 1 | . . 1 Utility . | . . . Weapon . | . . . Highest Loss Streak 1 | . . 1 To Critical Strikes . | . . . Average Backups 4 | 2 4 3 Power . | . . . Propulsion 1 | 1 1 . Utility 1 | . . 2 Weapon . | . 1 . Tool/Special . | . . . Unused Backups 6 | . 3 3 Power . | . . . Propulsion 2 | . 2 . Utility 3 | . . 3 Weapon 1 | . 1 . Tool/Special . | . . . Average Slot Usage (%) 94 | . 97 90 Engine 13 | . 14 13 Treads 9 | . 17 . Wheel 8 | . 2 15 Hover 7 | . 6 8 Device 15 | . 18 11 Storage 1 | . 3 . Processor 9 | . 3 16 Energy Gun 9 | . 11 8 Ballistic Gun 14 | . 13 15 Launcher 1 | . 2 . Peak Build Rating 13 | 5 8 13 Average Rating 8 | 3 6 10 On Entrance 4 | . 5 7 Avg Prop Armor Cover (%) 5 | . . 5 Naked Turns . | . . . Heaviest Build 50 | 6 50 15 Greatest Support 40 | 20 40 40 Greatest Overweight (x) 4 | . 4 4 Average Overweight (x) . | . . . Largest Inventory Capacity 20 | 5 20 5 Average Capacity 6 | 5 8 5 Most Carried 10 | 4 10 5 Average Carried 4 | 2 4 3 Final Capacity 5 | 5 5 5 Final Carried 5 | 4 5 3 Class Distribution -------------------- 55% | Mutant 44% | Scavenger-Mutant Dominant Class ---------------- Mutant | -10/Materials Scavenger-Mutant | -10/Subcaves Resources | -11 -10 -10 ----------- Run | Yrd Mat Sub Matter Collected 706 | 276 312 118 Remotely . | . . . Salvage Created 766 | 50 422 294 Parts 47 | 1 29 17 Haulers Intercepted . | . . . Recyclers Shooed . | . . . Parts Field Recycled . | . . . Retrieved Matter . | . . . Parts Self-Destructed . | . . . Prevented . | . . . Parts Restored . | . . . Kills | -11 -10 -10 ------- Run | Yrd Mat Sub Combat Hostiles Destroyed 21 | 1 12 8 Guns 19 | 1 10 8 AOE 2 | . 2 . Classes Destroyed 6 | 1 3 2 Worker 1 | . 1 . Watcher 3 | . 3 . Swarmer 2 | . 2 . Grunt 11 | 1 10 . Artisan 1 | . . 1 Subdweller 8 | . . 8 Best Kill Streak 4 | 1 4 2 Combat Bots Only 4 | 1 4 2 Max Kills in Single Turn 2 | 1 2 1 Gunslinging 1 | . 1 . Exploded 1 | . 1 . Melee . | . . . Uniques/NPCs Destroyed . | . . . Combat | -11 -10 -10 -------- Run | Yrd Mat Sub Hostile Shots Fired 122 | 3 84 35 Missed 31 | 1 22 8 Hits 91 | 2 62 27 Projectile 91 | 2 62 27 Critical Strikes 2 | . 2 . Damage Taken 1055 | 18 537 500 Core 266 | . 114 152 Absorbed by Shields . | . . . Ignored by Resistances 318 | 6 170 142 Core Remaining (%) 100 | 100 . . Volleys Fired 78 | 4 45 29 Largest 2 | 2 2 2 Hottest 90 | 40 70 90 Shots Fired 155 | 8 90 57 Gun 146 | 8 81 57 Cannon . | . . . Launcher 9 | . 9 . Special . | . . . Kinetic 72 | 8 45 19 Thermal 74 | . 36 38 Explosive 9 | . 9 . Electromagnetic . | . . . Robot Hit Streak 31 | 5 14 31 Robot Miss Streak 3 | . 3 1 Penetration Max . | . . . Secondary Targets 7 | . 4 3 Max Gunslinging Chain 1 | . 1 1 Shots Hit Robots 121 | 5 65 51 Core Hits 50 | 2 28 20 Critical Kills . | . . . Critical Parts Destroyed . | . . . Critical Strikes 3 | . . 3 Burn 3 | . . 3 Melee Attacks . | . . . Impact . | . . . Slashing . | . . . Piercing . | . . . Sneak Attacks . | . . . Combat Hostiles . | . . . Follow-up Attacks . | . . . Damage Inflicted 1856 | 56 1031 769 Guns 1533 | 56 708 769 Cannons . | . . . Explosions 323 | . 323 . Melee . | . . . Ramming . | . . . Kinetic 691 | 56 353 282 Thermal 842 | . 355 487 Explosive 323 | . 323 . Electromagnetic . | . . . Impact . | . . . Slashing . | . . . Piercing . | . . . Highest Corruption . | . . . Average Corruption . | . . . Corruption Purged . | . . . Corruption Blocked . | . . . Overload Shots . | . . . Overflow Damage 7 | . 7 . Projectiles . | . . . Explosions 7 | . 7 . Melee . | . . . Knockbacks . | . . . Impact . | . . . Kinetic . | . . . Secondary . | . . . Self-Inflicted Damage 18 | . 18 . Shots 1 | . 1 . Rammed . | . . . Targets Rammed . | . . . Kicked . | . . . Crushed . | . . . Highest Temperature 168 | 6 168 4 Average Temperature 64 | 6 66 4 Received Heat Transfer 507 | 12 348 147 Siege Activations . | . . . Martial Activations . | . . . Shielding Activations . | . . . Robots Disrupted . | . . . Combat Hostiles . | . . . Robots Corrupted . | . . . Combat Hostiles . | . . . Parts Fried . | . . . Impact Corruptions . | . . . Robots Melted . | . . . Combat Hostiles . | . . . Parts Melted . | . . . Heat Transferred 2268 | . 990 1278 Parts Sabotaged . | . . . Parts Stolen . | . . . Parts Stripped . | . . . Power Chain Reactions . | . . . Alert | -11 -10 -10 ------- Run | Yrd Mat Sub Maximum Alert Level . | . . . Low Security (%) 100 | 100 100 . Level 1 . | . . . Level 2 . | . . . Level 3 . | . . . Level 4 . | . . . Level 5 . | . . . High Security . | . . . Max Security . | . . . Peak Influence 80 | 20 80 . Initial . | . . . Average 15 | 2 17 . Influence Increases 367 | 20 347 . Destroy 0b10 Robot/C 260 | 20 240 . Destroy 0b10 Robot/NC 20 | . 20 . Destroy Leader 56 | . 56 . Successful Hack 3 | . 3 . Disable Machine 9 | . 9 . Destroy Structure 19 | . 19 . Influence Decreases 367 | 20 347 . Time Decay 367 | 20 347 . Squads Dispatched 3 | . 3 . Investigation 3 | . 3 . Extermination . | . . . Reinforcement . | . . . Assault . | . . . Garrison . | . . . Intercept . | . . . Searches Triggered . | . . . Construction Impeded . | . . . Haulers Reinforced . | . . . Active Scanning Responses . | . . . Cargo Convoy Interrupts . | . . . Stealth | -11 -10 -10 --------- Run | Yrd Mat Sub Distress Signals . | . . . Communications Jammed . | . . . Distress Signals . | . . . Times Spotted 33 | 1 16 16 Peak Tracking Total 6 | 1 5 6 Tactical Retreats . | . . . Traps | -11 -10 -10 ------- Run | Yrd Mat Sub Traps Triggered 3 | . 3 . Indirectly . | . . . Trap Hack Attempts . | . . . Triggered . | . . . Disarmed . | . . . Reprogrammed . | . . . Reused . | . . . Traps Extracted . | . . . Installed . | . . . Triggered . | . . . Machines | -11 -10 -10 ---------- Run | Yrd Mat Sub Machines Disabled 1 | . 1 . Max in Single Turn 1 | . 1 . Machines Repaired . | . . . Machines Dismantled . | . . . Machines Sabotaged . | . . . Overloaded Fab Kills . | . . . Hacking | -11 -10 -10 --------- Run | Yrd Mat Sub Machines Accessed 7 | . 7 . Terminals 5 | . 5 . Fabricators . | . . . Repair Stations . | . . . Recycling Units 2 | . 2 . Scanalyzers . | . . . Garrison Access . | . . . Total Hacks 34 | . 34 . Successful 26 | . 26 . Failed 8 | . 8 . Catastrophic . | . . . Database Lockouts . | . . . Manual . | . . . Terminals 18 | . 18 . Fabricators . | . . . Repair Stations . | . . . Recycling Units 16 | . 16 . Scanalyzers . | . . . Garrison Access . | . . . Terminal Hacks 14 | . 14 . Record 8 | . 8 . Prototype ID Bank 2 | . 2 . Emergency Access Points 2 | . 2 . Alert Level 1 | . 1 . Maintenance Status 1 | . 1 . Fabricator Hacks . | . . . Repair Station Hacks . | . . . Recycling Unit Hacks 12 | . 12 . Recycle Component 5 | . 5 . Process 2 | . 2 . Report Inventory 2 | . 2 . Retrieve Matter 1 | . 1 . Retrieve Components 2 | . 2 . Scanalyzer . | . . . Garrison Access Hacks . | . . . Unauthorized Hacks . | . . . Terminals . | . . . Fabricators . | . . . Repair Stations . | . . . Recycling Units . | . . . Scanalyzers . | . . . Garrison Access . | . . . Data Cores Recovered . | . . . Used . | . . . Hacking Detections 5 | . 5 . Full Trace Events 3 | . 3 . Feedback Events . | . . . Feedback Blocked . | . . . Robot Schematics Acquired . | . . . Robots Built . | . . . Authchips . | . . . Time . | . . . Total Robot Build Rating . | . . . Part Schematics Acquired . | . . . Parts Built . | . . . Authchips . | . . . Time . | . . . Total Part Build Rating . | . . . Part Studies Acquired . | . . . Parts Repaired . | . . . Time . | . . . Parts Recycled 5 | . 5 . Recycled Matter 436 | . 436 . Retrieved Matter 345 | . 345 . Retrieved Components . | . . . Parts Scanalyzed . | . . . Part Schematics Acquired . | . . . Parts Damaged . | . . . Bothacking | -11 -10 -10 ------------ Run | Yrd Mat Sub Used RIF Installer . | . . . Robots Hacked . | . . . Non-combat . | . . . Combat . | . . . Robot Hacks Applied . | . . . Relay Couplers Released . | . . . Fabnet Peak Effective % . | . . . Robots Rewired . | . . . Allies Hacked . | . . . Hacks Repelled . | . . . Allies | -11 -10 -10 -------- Run | Yrd Mat Sub Total Allies . | . . . Largest Group . | . . . Highest-Rated Group . | . . . Highest-Rated Ally . | . . . Total Orders . | . . . Ally Attacks . | . . . Total Damage . | . . . Kills . | . . . Allies Corrupted . | . . . Allies Melted . | . . . Intel | -11 -10 -10 ------- Run | Yrd Mat Sub Active Infowar (turns) 1835 | . 735 1100 Optics 1085 | . . 1085 Structural 741 | . 726 15 Seismic 403 | . 403 . Robot Analysis Total . | . . . Derelict Logs Recovered 1 | . . 1 Drone Launches . | . . . Drone Recoveries . | . . . Exploration | -11 -10 -10 ------------- Run | Yrd Mat Sub Turns Passed 2444 | 172 1172 1100 Spaces Moved 1836 | 93 891 852 Core 45 | 33 . 12 Treads 351 | . 351 . Legs . | . . . Wheels 660 | 60 95 505 Hover 722 | . 387 335 Flight 58 | . 58 . Fastest Speed 37 | 50 37 56 Average Speed 109 | 69 107 115 Slowest Speed 250 | 80 240 250 Overloaded Moves . | . . . Propulsion Burnouts . | . . . Robots Hopped . | . . . Potential Cave-ins . | . . . Cave-ins Triggered . | . . . Exploration Rate (%) 52 | 7 94 55 Regions Visited 2 Branch Regions 1 Pre-discovered Areas 1 | . . 1 Known Exits Taken 1 | . 1 . Unknown Exits Taken 1 | 1 . . Scrap Searched . | . . . Spaces Dug . | . . . Terrain Destroyed 16 | . 16 . Melee . | . . . Projectile . | . . . AOE 16 | . 16 . Terrain Rammed . | . . . Walls Destroyed . | . . . Machines Disabled . | . . . Actions | -11 -10 -10 --------- Run | Yrd Mat Sub Total 2128 | 193 1020 915 Wait 82 | 81 1 . Move 1834 | 92 890 852 Hop . | . . . Pick Up 46 | 9 27 10 Fast Attach 3 | . 2 1 Attach 16 | 6 7 3 Detach 5 | 1 3 1 Swap 31 | . 23 8 Drop 33 | . 22 11 Fire 78 | 4 45 29 Melee . | . . . Ram . | . . . Kick . | . . . Crush . | . . . Escape Stasis . | . . . Rewire . | . . . Trap . | . . . Miscellaneous . | . . . Route ------- -11/Scrapyard -10/Materials (discovered 5 exits: *Mat x3 / [*Min] / *Sub) -10/Subcaves (discovered 1 exit: *Mat) History --------- Turn | Location | Event 2 | -11/Scrapyard | Met Revision 17 76 | -11/Scrapyard | Discovered new exit (range 8) 173 | -11/Scrapyard | Entered Materials 317 | -10/Materials | Build established: Mutant 640 | -10/Materials | Discovered new exit (range 3) 852 | -10/Materials | Discovered new exit (range 16) 913 | -10/Materials | Discovered new exit (range 6) 1067 | -10/Materials | Discovered new exit (range 16) 1163 | -10/Materials | Discovered new exit (range 16) 1330 | -10/Materials | Identified exit to Subcaves 1337 | -10/Materials | Identified exit to Materials 1345 | -10/Materials | Entered Subcaves 1346 | -10/Subcaves | Approached by a straggling Scientist 1415 | -10/Subcaves | Core integrity fell below 50% 1429 | -10/Subcaves | Ambushed by swarm of Subdwellers 1430 | -10/Subcaves | Core integrity fell below 20% 1475 | -10/Subcaves | Shifting Twisted Machinery released Scrap Shield 1496 | -10/Subcaves | Shifting Twisted Machinery released Spk. Treads 1777 | -10/Subcaves | Build established: Scavenger-Mutant 1903 | -10/Subcaves | Discovered new exit (range 19) 1922 | -10/Subcaves | Identified exit to Materials 2047 | -10/Subcaves | Learned Materials emergency access door positions 2355 | -10/Subcaves | Learned location of Zion (-7) 2355 | -10/Subcaves | Met a Zionite searching for "candidates" 2427 | -10/Subcaves | Shifting Twisted Machinery released Sub. Beam Cannon 2445 | -10/Subcaves | Destroyed by L0-I3W(R) with Subdweller Machine Gun Last Messages --------------- directions. VK-CMM(g) destroyed. KH-Q6I(h) destroyed. Acquired Battle Rifle. 3Y-DXN(u) tweaks Twisted Machinery. Acquired 10 matter. Subatomizers dissect the Sub. Optics. Sub. Monowheel shoots sparks and powers down. LS-CL3(z): "Hey you! It's really dangerous down here, I feel that you could die at any moment. For your health and safety might I suggest a trip to Zion?" World map updated: -7/Zion. KS-N10(u) tweaks Twisted Machinery. Sub. Monowheel shoots sparks and powers down. Sub. Beam Cannon falls loose from the Twisted Machinery. MQ-2V3(R) destroyed. Switching to secondary target: L0-I3W(R). [Achievement: First Step to Greatness] Map ----- +----------------------------------------------------+ | ?????????????????????????????????????????????????? | | ?????????????????????????????????????????????????? | | ?????????????????????????????????????????????????? | | ?????????????????????????????????????????????????? | | ?????????????????????????????????????????????????? | | ???????????????????????????????????????????????? | | ???????????????????#####??????????????????????? | | ???????????????????? ??????????????????????? | | ????????????????????# ???#??????????????????? | | ?????????????????????# ### ??????????????????? | | #????????????#######???? ???????????????????? | | ?????######### ## ###?? "" ???????????????????? | | #???## ## ## #???" ???????????????????? | | #???# ## #???? "#???????????????????? | | #???# ####?#""????????????????????? | | #?### ##"###"##???????????????????? | | ?## # ##"" ## ####????????????????? | | ?# ## # # ###??????????????? | | ?# ### ### ""#??????????????? | | ?# ##?# ### #?# ## ""##??????????????? | | ?## #?####?###?# ###### ## #??????????????? | | ### ### ###??# ##????##### ##??????????????? | | # #??# ?####?#### #??????????????? | | #??## ###; ## ### ####???????????? | | ## #???# ## R ##??????????? | | ### ##???# ### @ ]%! ##?????????? | | ## ##?# ##??? # ##"] # # # ##????????? | | ######??# #???# ####"$ ###### #????????? | | ???????## #????#???###??????#### ##????????? | | ??????## ##????????????????????# ###?????????? | | ??????# ##????????????????????? #???????????? | | ????### ###???????????????????? #???????????? | | ???## """" #??????????????????? #???????????? | | #### """"##??????????????????? #???????????? | | # """##???????????????????# #???????????? | | """"#????????????????????# ##???????????? | | ""##????????????????????# #????????????? | | ## ###????????????????????? ????????????? | | #####??????????????????????? ## ????????????? | | #???????????????????????? #??# ????????????? | | ##???????????????????????##???? ????????????? | | #?????????????????????????????? ????????????? | | #### ????????????????????????? ????????????? | | ????????????????????? ???????????? | | ##??????????????????????? ???????????? | | #???????????????????????? ???????????? | | #?????????????????????? ???????????? | | #?????????????????????? ???????????? | | ##??????????????????????????????????? | | ##???????????????????????????????????? | +----------------------------------------------------+ Best States ------------- Heat Dissipation 35 Energy Generation 15 Energy Capacity 250 Matter Stores 300 Matter Capacity 300 Sight Range 21 Terrain Scan Density 10 Resistance: KI 20 Resistance: TH 20 Resistance: EX 20 Resistance: EM 20 Resistance: I 20 Resistance: S 20 Resistance: P 20 Evasion (%) 62 Recoil Reduction 2 Offensive Hacking 10 Item Schematics ----------------- None Robot Schematics ------------------ None Fabricated ------------ Nothing Repaired ---------- Nothing Studied --------- None Alien Tech Used ----------------- None Achievements -------------- Art Critic Crack Shot First Step to Greatness One Hack Too Far Spot Them First Challenges ------------ None Game ------ Seed StructuralGodSlamshotty Manual? 0 Play Time 01:03:23 Cumulative 1.0 hours Start 2025.10.25 @ 20:29:11 End 2025.10.25 @ 21:42:19 Sessions 1 Manual Loads 0 Difficulty Adventurer Special Mode None Game No. 1 Rogue 0 Adventurer 1 Explorer 0 Win Type - Total 0 Types 0/0/0/0/0/0/0/0/0/0 Lore% 0 Gallery% 2 Achievement% 1 Wizard Run 0 Options --------- Layout 1 ASCII 0 Keyboard 0 Movement Mouse Keybinds 0 Fullscreen 1 Font 32/SmallcapsGlow Map View 50x35 Zoom Use 0% Tactical HUD 0 Map Filters NONE Filters NONE Steam 1 RUN: 09cb3694-d27d-4f3b-8d61-161eb047f0c2